[Event "Titled Tuesday Blitz October 31 Late 2023"]
[White "Souleidis, Georgios"]
[Black "Zakarian, David"]
[WhiteFideId "4206827"]
[BlackFideId "13301276"]
[WhiteElo "2607"]
[BlackElo "2429"]
[Result "0-1"]
[Round "5"]
[TimeControl "180+1"]
[Date "2023.10.31"]
[WhiteClock "0:00:11"]
[BlackClock "0:01:25"]
[Board "69"]

1. e4 {[%clk 0:03:00]}  Nc6 {[%clk 0:02:59]} 2. d4 {[%clk 0:03:00]}  d5 {[%clk 0:03:00]} 3. e5 {[%clk 0:03:00]}  f6 {[%clk 0:03:00]} 4. f4 {[%clk 0:03:00]}  Bf5 {[%clk 0:03:00]} 5. c3 {[%clk 0:03:00]}  e6 {[%clk 0:03:00]} 6. Nd2 {[%clk 0:03:00]}  Nh6 {[%clk 0:03:01]} 7. Be2 {[%clk 0:02:55]}  Be7 {[%clk 0:03:00]} 8. Ndf3 {[%clk 0:02:31]}  O-O {[%clk 0:02:57]} 9. h3 {[%clk 0:02:03]}  fxe5 {[%clk 0:02:48]} 10. g4 {[%clk 0:01:15]}  Bh4+ {[%clk 0:02:32]} 11. Kf1 {[%clk 0:01:04]}  Be4 {[%clk 0:02:31]} 12. dxe5 {[%clk 0:00:59]}  Bg3 {[%clk 0:02:12]} 13. Qb3 {[%clk 0:00:39]}  Bxf4 {[%clk 0:02:05]} 14. Qxb7 {[%clk 0:00:35]}  Nxe5 {[%clk 0:02:03]} 15. Kg2 {[%clk 0:00:28]}  Rb8 {[%clk 0:01:49]} 16. Qa6 {[%clk 0:00:25]}  Bxc1 {[%clk 0:01:49]} 17. Rxc1 {[%clk 0:00:23]}  Rxb2 {[%clk 0:01:41]} 18. Qxe6+ {[%clk 0:00:23]}  Nhf7 {[%clk 0:01:36]} 19. Kg3 {[%clk 0:00:20]}  Re8 {[%clk 0:01:35]} 20. Qa6 {[%clk 0:00:17]}  Rb6 {[%clk 0:01:29]} 21. Qa4 {[%clk 0:00:16]}  Qd6 {[%clk 0:01:29]} 22. Rh2 {[%clk 0:00:11]}  Nxf3+ {[%clk 0:01:25]} 0-1


[Site "https://www.chess.com"]

[Event "Titled Tuesday Blitz October 31 Late 2023"]
[White "Devagharan, Devina"]
[Black "Karamsetty, Jeevan"]
[WhiteFideId "2061600"]
[BlackFideId "2025337"]
[WhiteElo "2426"]
[BlackElo "2601"]
[Result "0-1"]
[Round "5"]
[TimeControl "180+1"]
[Date "2023.10.31"]
[WhiteClock "0:00:00"]
[BlackClock "0:00:32"]
[Board "70"]

1. d4 {[%clk 0:03:00]}  g6 {[%clk 0:02:58]} 2. c4 {[%clk 0:02:56]}  Bg7 {[%clk 0:02:58]} 3. Nc3 {[%clk 0:02:53]}  d6 {[%clk 0:02:58]} 4. e4 {[%clk 0:02:50]}  e5 {[%clk 0:02:58]} 5. d5 {[%clk 0:02:46]}  a5 {[%clk 0:02:57]} 6. Be3 {[%clk 0:02:43]}  Na6 {[%clk 0:02:55]} 7. Bd3 {[%clk 0:02:22]}  Bh6 {[%clk 0:02:51]} 8. Bxh6 {[%clk 0:01:57]}  Nxh6 {[%clk 0:02:52]} 9. Qd2 {[%clk 0:01:58]}  Ng8 {[%clk 0:02:37]} 10. Nge2 {[%clk 0:01:29]}  Qe7 {[%clk 0:02:29]} 11. f3 {[%clk 0:01:24]}  f5 {[%clk 0:02:28]} 12. O-O-O {[%clk 0:01:02]}  Nf6 {[%clk 0:02:23]} 13. h3 {[%clk 0:00:58]}  Bd7 {[%clk 0:02:19]} 14. g4 {[%clk 0:00:56]}  Nc5 {[%clk 0:02:13]} 15. Bc2 {[%clk 0:00:53]}  f4 {[%clk 0:02:11]} 16. Kb1 {[%clk 0:00:51]}  O-O {[%clk 0:01:59]} 17. h4 {[%clk 0:00:47]}  h5 {[%clk 0:01:45]} 18. gxh5 {[%clk 0:00:46]}  Nxh5 {[%clk 0:01:45]} 19. Rdg1 {[%clk 0:00:46]}  Kh7 {[%clk 0:01:45]} 20. Rg5 {[%clk 0:00:43]}  a4 {[%clk 0:01:34]} 21. Rhg1 {[%clk 0:00:43]}  Rf6 {[%clk 0:01:31]} 22. Nd1 {[%clk 0:00:41]}  b5 {[%clk 0:01:30]} 23. Nf2 {[%clk 0:00:40]}  bxc4 {[%clk 0:01:29]} 24. Ng4 {[%clk 0:00:39]}  Bxg4 {[%clk 0:01:25]} 25. fxg4 {[%clk 0:00:36]}  Ng3 {[%clk 0:01:21]} 26. Nxg3 {[%clk 0:00:34]}  fxg3 {[%clk 0:01:22]} 27. h5 {[%clk 0:00:29]}  Raf8 {[%clk 0:01:18]} 28. hxg6+ {[%clk 0:00:26]}  Kg7 {[%clk 0:01:18]} 29. Rf5 {[%clk 0:00:16]}  Rxg6 {[%clk 0:01:13]} 30. Rh1 {[%clk 0:00:16]}  Rxf5 {[%clk 0:01:01]} 31. exf5 {[%clk 0:00:15]}  Qg5 {[%clk 0:00:44]} 32. Qg2 {[%clk 0:00:06]}  Rh6 {[%clk 0:00:38]} 33. Rf1 {[%clk 0:00:03]}  Qxg4 {[%clk 0:00:33]} 34. Bd1 {[%clk 0:00:02]}  Qe4+ {[%clk 0:00:31]} 35. Qxe4 {[%clk 0:00:00]}  Nxe4 {[%clk 0:00:32]} 0-1


[Site "https://www.chess.com"]

[Event "Titled Tuesday Blitz October 31 Late 2023"]
[White "victormago"]
[Black "Ibadov, Dashgyn"]
[BlackFideId "24107514"]
[WhiteElo "2426"]
[BlackElo "2598"]
[Result "1/2-1/2"]
[Round "5"]
[TimeControl "180+1"]
[Date "2023.10.31"]
[WhiteClock "0:00:30"]
[BlackClock "0:00:02"]
[Board "71"]

1. d4 {[%clk 0:03:00]}  d5 {[%clk 0:02:37]} 2. c4 {[%clk 0:02:59]}  e6 {[%clk 0:02:38]} 3. Nc3 {[%clk 0:02:58]}  c6 {[%clk 0:02:39]} 4. e3 {[%clk 0:02:58]}  Nf6 {[%clk 0:02:37]} 5. Qc2 {[%clk 0:02:58]}  Nbd7 {[%clk 0:02:37]} 6. Nf3 {[%clk 0:02:58]}  Bd6 {[%clk 0:02:38]} 7. g4 {[%clk 0:02:58]}  h6 {[%clk 0:02:35]} 8. Rg1 {[%clk 0:02:53]}  dxc4 {[%clk 0:02:32]} 9. Bxc4 {[%clk 0:02:52]}  b5 {[%clk 0:02:31]} 10. Be2 {[%clk 0:02:47]}  Bb7 {[%clk 0:02:31]} 11. h4 {[%clk 0:02:47]}  b4 {[%clk 0:02:09]} 12. Na4 {[%clk 0:02:40]}  Qa5 {[%clk 0:01:52]} 13. b3 {[%clk 0:02:33]}  c5 {[%clk 0:01:49]} 14. g5 {[%clk 0:02:27]}  Be4 {[%clk 0:01:40]} 15. Qd2 {[%clk 0:02:16]}  Nd5 {[%clk 0:01:37]} 16. Bb2 {[%clk 0:02:10]}  Rd8 {[%clk 0:01:10]} 17. gxh6 {[%clk 0:01:54]}  Rxh6 {[%clk 0:00:56]} 18. Rc1 {[%clk 0:01:34]}  Rg6 {[%clk 0:00:43]} 19. Rxg6 {[%clk 0:01:28]}  Bxg6 {[%clk 0:00:44]} 20. a3 {[%clk 0:01:13]}  Kf8 {[%clk 0:00:37]} 21. dxc5 {[%clk 0:01:02]}  Nxc5 {[%clk 0:00:33]} 22. axb4 {[%clk 0:00:49]}  Nxb4 {[%clk 0:00:09]} 23. Nxc5 {[%clk 0:00:38]}  Bxc5 {[%clk 0:00:09]} 24. Rxc5 {[%clk 0:00:38]}  Rxd2 {[%clk 0:00:08]} 25. Rxa5 {[%clk 0:00:38]}  Rxb2 {[%clk 0:00:09]} 26. Rxa7 {[%clk 0:00:36]}  Rb1+ {[%clk 0:00:09]} 27. Kd2 {[%clk 0:00:36]}  Rxb3 {[%clk 0:00:07]} 28. Ne5 {[%clk 0:00:30]}  Rb2+ {[%clk 0:00:07]} 29. Ke1 {[%clk 0:00:30]}  Rb1+ {[%clk 0:00:05]} 30. Kd2 {[%clk 0:00:29]}  Rb2+ {[%clk 0:00:06]} 31. Ke1 {[%clk 0:00:30]}  Rb1+ {[%clk 0:00:03]} 32. Kd2 {[%clk 0:00:30]}  Rb2+ {[%clk 0:00:02]} 1/2-1/2


[Site "https://www.chess.com"]

[Event "Titled Tuesday Blitz October 31 Late 2023"]
[White "Roberson, Peter T"]
[Black "Polaczek, Richard"]
[WhiteFideId "412384"]
[BlackFideId "200026"]
[WhiteElo "2597"]
[BlackElo "2422"]
[Result "1-0"]
[Round "5"]
[TimeControl "180+1"]
[Date "2023.10.31"]
[WhiteClock "0:02:15"]
[BlackClock "0:01:33"]
[Board "73"]

1. e4 {[%clk 0:03:00]}  Nf6 {[%clk 0:02:58]} 2. Nc3 {[%clk 0:02:52]}  d5 {[%clk 0:02:57]} 3. e5 {[%clk 0:02:52]}  Nfd7 {[%clk 0:02:56]} 4. d4 {[%clk 0:02:52]}  e6 {[%clk 0:02:56]} 5. f4 {[%clk 0:02:48]}  c5 {[%clk 0:02:56]} 6. Nf3 {[%clk 0:02:49]}  Nc6 {[%clk 0:02:56]} 7. Be3 {[%clk 0:02:50]}  Be7 {[%clk 0:02:56]} 8. Qd2 {[%clk 0:02:50]}  O-O {[%clk 0:02:55]} 9. dxc5 {[%clk 0:02:47]}  Nxc5 {[%clk 0:02:33]} 10. O-O-O {[%clk 0:02:45]}  Rb8 {[%clk 0:02:30]} 11. Kb1 {[%clk 0:02:43]}  Qa5 {[%clk 0:02:19]} 12. Bxc5 {[%clk 0:02:30]}  Bxc5 {[%clk 0:02:15]} 13. Bd3 {[%clk 0:02:31]}  b5 {[%clk 0:02:07]} 14. Bxh7+ {[%clk 0:02:19]}  Kxh7 {[%clk 0:02:02]} 15. Ng5+ {[%clk 0:02:19]}  Kg8 {[%clk 0:02:01]} 16. Qd3 {[%clk 0:02:19]}  f5 {[%clk 0:01:40]} 17. exf6 {[%clk 0:02:16]}  Rxf6 {[%clk 0:01:33]} 18. Qh7+ {[%clk 0:02:17]}  Kf8 {[%clk 0:01:33]} 19. Qh8+ {[%clk 0:02:17]}  Ke7 {[%clk 0:01:33]} 20. Qxg7+ {[%clk 0:02:18]}  Kd6 {[%clk 0:01:33]} 21. Nce4# {[%clk 0:02:15]} 1-0


[Site "https://www.chess.com"]

[Event "Titled Tuesday Blitz October 31 Late 2023"]
[White "Ezat, Mohamed"]
[Black "Kovalevsky, Stanislav"]
[WhiteFideId "10600906"]
[BlackFideId "13508598"]
[WhiteElo "2586"]
[BlackElo "2416"]
[Result "1-0"]
[Round "5"]
[TimeControl "180+1"]
[Date "2023.10.31"]
[WhiteClock "0:01:10"]
[BlackClock "0:00:39"]
[Board "75"]

1. d4 {[%clk 0:02:54]}  d5 {[%clk 0:02:59]} 2. c4 {[%clk 0:02:53]}  c6 {[%clk 0:03:00]} 3. Nc3 {[%clk 0:02:52]}  Nf6 {[%clk 0:02:59]} 4. cxd5 {[%clk 0:02:51]}  cxd5 {[%clk 0:02:59]} 5. Bf4 {[%clk 0:02:50]}  a6 {[%clk 0:02:56]} 6. e3 {[%clk 0:02:49]}  Nc6 {[%clk 0:02:56]} 7. Bd3 {[%clk 0:02:48]}  Bg4 {[%clk 0:02:54]} 8. Nge2 {[%clk 0:02:47]}  e6 {[%clk 0:02:53]} 9. O-O {[%clk 0:02:46]}  Bd6 {[%clk 0:02:52]} 10. f3 {[%clk 0:02:46]}  Bh5 {[%clk 0:02:51]} 11. Rc1 {[%clk 0:02:44]}  O-O {[%clk 0:02:49]} 12. Na4 {[%clk 0:02:44]}  e5 {[%clk 0:02:31]} 13. dxe5 {[%clk 0:02:37]}  Nxe5 {[%clk 0:02:32]} 14. Nd4 {[%clk 0:02:35]}  Nxd3 {[%clk 0:01:55]} 15. Qxd3 {[%clk 0:02:33]}  Bg6 {[%clk 0:01:49]} 16. Qd2 {[%clk 0:02:32]}  b5 {[%clk 0:01:33]} 17. Nc5 {[%clk 0:02:02]}  Qb6 {[%clk 0:01:28]} 18. b4 {[%clk 0:01:45]}  a5 {[%clk 0:01:17]} 19. bxa5 {[%clk 0:01:44]}  Rxa5 {[%clk 0:01:15]} 20. Bxd6 {[%clk 0:01:44]}  Qxd6 {[%clk 0:01:14]} 21. Qxa5 {[%clk 0:01:43]}  Qe5 {[%clk 0:01:10]} 22. Qd2 {[%clk 0:01:42]}  Re8 {[%clk 0:01:10]} 23. Rfe1 {[%clk 0:01:41]}  h5 {[%clk 0:01:08]} 24. Nd3 {[%clk 0:01:37]}  Qd6 {[%clk 0:01:05]} 25. Nf4 {[%clk 0:01:36]}  h4 {[%clk 0:01:02]} 26. Nxb5 {[%clk 0:01:36]}  Qb6 {[%clk 0:01:00]} 27. Nxg6 {[%clk 0:01:24]}  fxg6 {[%clk 0:01:00]} 28. Nd4 {[%clk 0:01:24]}  h3 {[%clk 0:00:59]} 29. gxh3 {[%clk 0:01:22]}  Re5 {[%clk 0:00:56]} 30. Kh1 {[%clk 0:01:17]}  Rh5 {[%clk 0:00:54]} 31. Qg2 {[%clk 0:01:17]}  Kh7 {[%clk 0:00:52]} 32. Rg1 {[%clk 0:01:14]}  Nd7 {[%clk 0:00:39]} 33. Rc6 {[%clk 0:01:10]} 1-0


[Site "https://www.chess.com"]

[Event "Titled Tuesday Blitz October 31 Late 2023"]
[White "Hoffmann, Asa"]
[Black "Skatchkov, Valery"]
[WhiteFideId "2001470"]
[BlackFideId "24195812"]
[WhiteElo "2415"]
[BlackElo "2585"]
[Result "0-1"]
[Round "5"]
[TimeControl "180+1"]
[Date "2023.10.31"]
[WhiteClock "0:00:50"]
[BlackClock "0:01:52"]
[Board "76"]

1. d4 {[%clk 0:02:56]}  Nf6 {[%clk 0:02:59]} 2. Bg5 {[%clk 0:02:55]}  d5 {[%clk 0:02:57]} 3. Nd2 {[%clk 0:02:54]}  c5 {[%clk 0:02:56]} 4. e3 {[%clk 0:02:54]}  Nc6 {[%clk 0:02:55]} 5. c3 {[%clk 0:02:54]}  e5 {[%clk 0:02:55]} 6. Bb5 {[%clk 0:02:53]}  Bd6 {[%clk 0:02:52]} 7. dxe5 {[%clk 0:02:52]}  Bxe5 {[%clk 0:02:52]} 8. Ngf3 {[%clk 0:02:52]}  Bc7 {[%clk 0:02:52]} 9. O-O {[%clk 0:02:47]}  O-O {[%clk 0:02:52]} 10. h3 {[%clk 0:02:44]}  h6 {[%clk 0:02:52]} 11. Bf4 {[%clk 0:02:40]}  Bxf4 {[%clk 0:02:51]} 12. exf4 {[%clk 0:02:40]}  Qb6 {[%clk 0:02:38]} 13. Bxc6 {[%clk 0:02:37]}  bxc6 {[%clk 0:02:39]} 14. Ne5 {[%clk 0:02:35]}  Ba6 {[%clk 0:02:35]} 15. Re1 {[%clk 0:02:33]}  Qxb2 {[%clk 0:02:35]} 16. Qb3 {[%clk 0:02:30]}  Rab8 {[%clk 0:02:32]} 17. Qxb2 {[%clk 0:02:25]}  Rxb2 {[%clk 0:02:32]} 18. Nb3 {[%clk 0:02:25]}  Ne4 {[%clk 0:02:23]} 19. Nxc6 {[%clk 0:02:18]}  c4 {[%clk 0:02:18]} 20. Nbd4 {[%clk 0:02:07]}  Nxc3 {[%clk 0:02:19]} 21. a4 {[%clk 0:01:59]}  Bb7 {[%clk 0:02:17]} 22. Ne7+ {[%clk 0:01:47]}  Kh8 {[%clk 0:02:16]} 23. Nef5 {[%clk 0:01:47]}  Ne4 {[%clk 0:02:09]} 24. f3 {[%clk 0:01:40]}  Nf6 {[%clk 0:02:08]} 25. Nd6 {[%clk 0:01:38]}  Rb6 {[%clk 0:02:05]} 26. N6f5 {[%clk 0:01:29]}  Rc8 {[%clk 0:02:00]} 27. Rab1 {[%clk 0:01:27]}  c3 {[%clk 0:01:57]} 28. a5 {[%clk 0:01:26]}  Rxb1 {[%clk 0:01:56]} 29. Rxb1 {[%clk 0:01:26]}  Ba6 {[%clk 0:01:56]} 30. Rc1 {[%clk 0:01:16]}  g6 {[%clk 0:01:54]} 31. Nd6 {[%clk 0:01:16]}  Rc7 {[%clk 0:01:54]} 32. g4 {[%clk 0:01:12]}  Kg7 {[%clk 0:01:53]} 33. g5 {[%clk 0:01:10]}  Nh5 {[%clk 0:01:52]} 34. f5 {[%clk 0:01:09]}  hxg5 {[%clk 0:01:51]} 35. fxg6 {[%clk 0:01:07]}  Kxg6 {[%clk 0:01:52]} 36. Kf2 {[%clk 0:01:01]}  Nf4 {[%clk 0:01:51]} 37. Ke3 {[%clk 0:00:50]}  Re7+ {[%clk 0:01:52]} 0-1


[Site "https://www.chess.com"]

[Event "Titled Tuesday Blitz October 31 Late 2023"]
[White "Freile Martin, Javier"]
[Black "Kochiev, Ivan"]
[WhiteFideId "3600165"]
[BlackFideId "2917890"]
[WhiteElo "2347"]
[BlackElo "2579"]
[Result "0-1"]
[Round "5"]
[TimeControl "180+1"]
[Date "2023.10.31"]
[WhiteClock "0:01:14"]
[BlackClock "0:00:03"]
[Board "80"]

1. c4 {[%clk 0:03:00]}  e5 {[%clk 0:03:00]} 2. Nc3 {[%clk 0:02:59]}  Nf6 {[%clk 0:02:56]} 3. Nf3 {[%clk 0:02:59]}  Nc6 {[%clk 0:02:56]} 4. a3 {[%clk 0:02:58]}  a5 {[%clk 0:02:54]} 5. e3 {[%clk 0:02:58]}  d5 {[%clk 0:02:53]} 6. cxd5 {[%clk 0:02:57]}  Nxd5 {[%clk 0:02:54]} 7. Qc2 {[%clk 0:02:56]}  Nxc3 {[%clk 0:02:35]} 8. bxc3 {[%clk 0:02:53]}  Bd6 {[%clk 0:02:35]} 9. Rb1 {[%clk 0:02:51]}  O-O {[%clk 0:02:34]} 10. Bc4 {[%clk 0:02:48]}  Re8 {[%clk 0:02:30]} 11. h4 {[%clk 0:02:46]}  Be6 {[%clk 0:01:42]} 12. Bxe6 {[%clk 0:02:41]}  Rxe6 {[%clk 0:01:42]} 13. Ng5 {[%clk 0:02:38]}  Rh6 {[%clk 0:01:42]} 14. Rxb7 {[%clk 0:02:34]}  a4 {[%clk 0:01:25]} 15. Qf5 {[%clk 0:02:28]}  Qe8 {[%clk 0:01:17]} 16. Ne4 {[%clk 0:02:19]}  Na5 {[%clk 0:01:10]} 17. Nxd6 {[%clk 0:01:51]}  Rxd6 {[%clk 0:00:41]} 18. Rb4 {[%clk 0:01:47]}  Nb3 {[%clk 0:00:38]} 19. O-O {[%clk 0:01:42]}  g6 {[%clk 0:00:18]} 20. Qe4 {[%clk 0:01:37]}  Rad8 {[%clk 0:00:13]} 21. d4 {[%clk 0:01:36]}  f5 {[%clk 0:00:09]} 22. Qc2 {[%clk 0:01:29]}  e4 {[%clk 0:00:09]} 23. Rxb3 {[%clk 0:01:26]}  axb3 {[%clk 0:00:09]} 24. Qxb3+ {[%clk 0:01:26]}  Kg7 {[%clk 0:00:08]} 25. c4 {[%clk 0:01:26]}  g5 {[%clk 0:00:08]} 26. hxg5 {[%clk 0:01:25]}  Qh5 {[%clk 0:00:08]} 27. Qb7 {[%clk 0:01:20]}  R8d7 {[%clk 0:00:05]} 28. d5 {[%clk 0:01:17]}  Qxg5 {[%clk 0:00:04]} 29. Bb2+ {[%clk 0:01:17]}  Kh6 {[%clk 0:00:05]} 30. Qc8 {[%clk 0:01:15]}  Rg6 {[%clk 0:00:03]} 31. Qxd7 {[%clk 0:01:14]}  Qxg2# {[%clk 0:00:03]} 0-1


[Site "https://www.chess.com"]

[Event "Titled Tuesday Blitz October 31 Late 2023"]
[White "Shapiro, Viktor"]
[Black "Bogaudinov, Rushan"]
[WhiteFideId "4175700"]
[BlackFideId "4129288"]
[WhiteElo "2570"]
[BlackElo "2365"]
[Result "1-0"]
[Round "5"]
[TimeControl "180+1"]
[Date "2023.10.31"]
[WhiteClock "0:00:20"]
[BlackClock "0:00:09"]
[Board "81"]

1. c4 {[%clk 0:03:00]}  Nf6 {[%clk 0:02:59]} 2. Nc3 {[%clk 0:03:01]}  e5 {[%clk 0:02:57]} 3. g3 {[%clk 0:03:00]}  d6 {[%clk 0:02:57]} 4. Bg2 {[%clk 0:03:00]}  Nc6 {[%clk 0:02:56]} 5. d3 {[%clk 0:02:59]}  g6 {[%clk 0:02:55]} 6. Rb1 {[%clk 0:02:59]}  a5 {[%clk 0:02:55]} 7. a3 {[%clk 0:02:59]}  Bg7 {[%clk 0:02:53]} 8. b4 {[%clk 0:02:56]}  axb4 {[%clk 0:02:53]} 9. axb4 {[%clk 0:02:55]}  O-O {[%clk 0:02:48]} 10. b5 {[%clk 0:02:52]}  Nd4 {[%clk 0:02:42]} 11. e3 {[%clk 0:02:53]}  Ne6 {[%clk 0:02:37]} 12. Nf3 {[%clk 0:02:40]}  Nc5 {[%clk 0:02:32]} 13. O-O {[%clk 0:02:32]}  e4 {[%clk 0:02:25]} 14. Ne1 {[%clk 0:02:13]}  exd3 {[%clk 0:02:18]} 15. Nxd3 {[%clk 0:01:55]}  Nxd3 {[%clk 0:02:03]} 16. Qxd3 {[%clk 0:01:55]}  Nd7 {[%clk 0:02:03]} 17. Nd5 {[%clk 0:01:49]}  Nc5 {[%clk 0:01:57]} 18. Qc2 {[%clk 0:01:49]}  Re8 {[%clk 0:01:53]} 19. e4 {[%clk 0:01:47]}  f5 {[%clk 0:01:23]} 20. b6 {[%clk 0:01:38]}  cxb6 {[%clk 0:01:19]} 21. Nxb6 {[%clk 0:01:35]}  Ra6 {[%clk 0:01:14]} 22. Nxc8 {[%clk 0:01:35]}  Qxc8 {[%clk 0:01:15]} 23. exf5 {[%clk 0:01:35]}  Qxf5 {[%clk 0:01:14]} 24. Qxf5 {[%clk 0:01:34]}  gxf5 {[%clk 0:01:15]} 25. Bxb7 {[%clk 0:01:29]}  Nxb7 {[%clk 0:01:13]} 26. Rxb7 {[%clk 0:01:29]}  Rc8 {[%clk 0:01:01]} 27. Re1 {[%clk 0:01:24]}  Be5 {[%clk 0:00:57]} 28. Bh6 {[%clk 0:01:11]}  Rac6 {[%clk 0:00:42]} 29. f4 {[%clk 0:01:06]}  Bd4+ {[%clk 0:00:38]} 30. Kg2 {[%clk 0:01:02]}  R6c7 {[%clk 0:00:31]} 31. Rxc7 {[%clk 0:00:55]}  Rxc7 {[%clk 0:00:31]} 32. Re6 {[%clk 0:00:53]}  Rc6 {[%clk 0:00:29]} 33. Bg5 {[%clk 0:00:45]}  Kf7 {[%clk 0:00:26]} 34. Re7+ {[%clk 0:00:44]}  Kg6 {[%clk 0:00:26]} 35. Rd7 {[%clk 0:00:42]}  Bc5 {[%clk 0:00:21]} 36. Be7 {[%clk 0:00:38]}  h6 {[%clk 0:00:19]} 37. Bf8 {[%clk 0:00:36]}  Bb4 {[%clk 0:00:17]} 38. Kh3 {[%clk 0:00:29]}  Rxc4 {[%clk 0:00:16]} 39. Bxd6 {[%clk 0:00:29]}  Rd4 {[%clk 0:00:15]} 40. Bxb4 {[%clk 0:00:19]}  Rxd7 {[%clk 0:00:15]} 41. Bc3 {[%clk 0:00:19]}  Kh5 {[%clk 0:00:15]} 42. Kg2 {[%clk 0:00:17]}  Kg6 {[%clk 0:00:14]} 43. h3 {[%clk 0:00:17]}  Rd3 {[%clk 0:00:15]} 44. Be1 {[%clk 0:00:17]}  h5 {[%clk 0:00:15]} 45. Bf2 {[%clk 0:00:16]}  Rb3 {[%clk 0:00:15]} 46. Be1 {[%clk 0:00:16]}  h4 {[%clk 0:00:14]} 47. gxh4 {[%clk 0:00:16]}  Kh5 {[%clk 0:00:14]} 48. Bf2 {[%clk 0:00:16]}  Rd3 {[%clk 0:00:14]} 49. Bg3 {[%clk 0:00:16]}  Rd4 {[%clk 0:00:13]} 50. Kf3 {[%clk 0:00:16]}  Rc4 {[%clk 0:00:13]} 51. Bf2 {[%clk 0:00:16]}  Rc3+ {[%clk 0:00:13]} 52. Kg2 {[%clk 0:00:16]}  Rb3 {[%clk 0:00:13]} 53. Bg3 {[%clk 0:00:16]}  Kg6 {[%clk 0:00:13]} 54. Bf2 {[%clk 0:00:16]}  Rc3 {[%clk 0:00:13]} 55. Bg3 {[%clk 0:00:17]}  Ra3 {[%clk 0:00:13]} 56. Bf2 {[%clk 0:00:17]}  Ra2 {[%clk 0:00:13]} 57. Kf3 {[%clk 0:00:17]}  Kh5 {[%clk 0:00:14]} 58. Bg3 {[%clk 0:00:16]}  Ra1 {[%clk 0:00:13]} 59. Bf2 {[%clk 0:00:15]}  Rb1 {[%clk 0:00:13]} 60. Kg2 {[%clk 0:00:15]}  Rb3 {[%clk 0:00:13]} 61. Bg3 {[%clk 0:00:15]}  Rd3 {[%clk 0:00:12]} 62. Bf2 {[%clk 0:00:15]}  Rd4 {[%clk 0:00:12]} 63. Bg3 {[%clk 0:00:15]}  Rd8 {[%clk 0:00:13]} 64. Kf3 {[%clk 0:00:15]}  Rh8 {[%clk 0:00:12]} 65. Bf2 {[%clk 0:00:16]}  Kg6 {[%clk 0:00:13]} 66. Bg3 {[%clk 0:00:16]}  Re8 {[%clk 0:00:13]} 67. Bf2 {[%clk 0:00:16]}  Rh8 {[%clk 0:00:13]} 68. Bg3 {[%clk 0:00:17]}  Kf6 {[%clk 0:00:14]} 69. Bf2 {[%clk 0:00:17]}  Ke6 {[%clk 0:00:15]} 70. Bg3 {[%clk 0:00:17]}  Ra8 {[%clk 0:00:15]} 71. Bf2 {[%clk 0:00:17]}  Ra3+ {[%clk 0:00:15]} 72. Kg2 {[%clk 0:00:17]}  Kd5 {[%clk 0:00:15]} 73. h5 {[%clk 0:00:17]}  Ke4 {[%clk 0:00:15]} 74. h6 {[%clk 0:00:16]}  Ra7 {[%clk 0:00:14]} 75. Bh4 {[%clk 0:00:16]}  Rh7 {[%clk 0:00:14]} 76. Bg5 {[%clk 0:00:16]}  Ke3 {[%clk 0:00:13]} 77. Kg3 {[%clk 0:00:16]}  Ke4 {[%clk 0:00:12]} 78. Kh4 {[%clk 0:00:17]}  Kd5 {[%clk 0:00:12]} 79. Kh5 {[%clk 0:00:17]}  Ke6 {[%clk 0:00:13]} 80. Kg6 {[%clk 0:00:18]}  Rh8 {[%clk 0:00:12]} 81. Kg7 {[%clk 0:00:19]}  Ra8 {[%clk 0:00:12]} 82. h7 {[%clk 0:00:19]}  Ra7+ {[%clk 0:00:13]} 83. Kg6 {[%clk 0:00:20]}  Ra8 {[%clk 0:00:13]} 84. Bf6 {[%clk 0:00:20]}  Ra2 {[%clk 0:00:12]} 85. h8=Q {[%clk 0:00:19]}  Rg2+ {[%clk 0:00:09]} 86. Bg5 {[%clk 0:00:20]} 1-0


[Site "https://www.chess.com"]

[Event "Titled Tuesday Blitz October 31 Late 2023"]
[White "Przybylski, Wojciech"]
[Black "Toncheva, Nadya"]
[WhiteFideId "1117599"]
[BlackFideId "2924056"]
[WhiteElo "2562"]
[BlackElo "2524"]
[Result "1-0"]
[Round "5"]
[TimeControl "180+1"]
[Date "2023.10.31"]
[WhiteClock "0:00:56"]
[BlackClock "0:00:05"]
[Board "83"]

1. e4 {[%clk 0:03:00]}  c5 {[%clk 0:02:59]} 2. Nf3 {[%clk 0:03:00]}  Nc6 {[%clk 0:03:00]} 3. d4 {[%clk 0:03:00]}  cxd4 {[%clk 0:03:01]} 4. Nxd4 {[%clk 0:03:01]}  g6 {[%clk 0:03:01]} 5. Be3 {[%clk 0:03:00]}  Bg7 {[%clk 0:03:01]} 6. Nc3 {[%clk 0:03:00]}  Nf6 {[%clk 0:03:00]} 7. Bc4 {[%clk 0:02:51]}  O-O {[%clk 0:02:59]} 8. O-O {[%clk 0:02:50]}  d6 {[%clk 0:02:51]} 9. h3 {[%clk 0:02:49]}  Qa5 {[%clk 0:02:42]} 10. Nb3 {[%clk 0:02:46]}  Qc7 {[%clk 0:02:17]} 11. Be2 {[%clk 0:02:44]}  a6 {[%clk 0:02:13]} 12. f4 {[%clk 0:02:42]}  b5 {[%clk 0:02:08]} 13. a3 {[%clk 0:02:39]}  Bb7 {[%clk 0:02:08]} 14. Bf3 {[%clk 0:02:38]}  Rac8 {[%clk 0:02:03]} 15. Rc1 {[%clk 0:02:36]}  e6 {[%clk 0:01:41]} 16. Qd2 {[%clk 0:02:34]}  Rfd8 {[%clk 0:01:29]} 17. Qf2 {[%clk 0:02:33]}  Nd7 {[%clk 0:01:27]} 18. Nd1 {[%clk 0:02:33]}  Na5 {[%clk 0:01:24]} 19. Nxa5 {[%clk 0:02:26]}  Qxa5 {[%clk 0:01:25]} 20. c3 {[%clk 0:02:26]}  Qa4 {[%clk 0:01:15]} 21. f5 {[%clk 0:01:55]}  Ne5 {[%clk 0:00:58]} 22. Bd4 {[%clk 0:01:47]}  Nd3 {[%clk 0:00:55]} 23. Qe3 {[%clk 0:01:39]}  Bxd4 {[%clk 0:00:51]} 24. cxd4 {[%clk 0:01:35]}  Nxc1 {[%clk 0:00:39]} 25. f6 {[%clk 0:01:34]}  Kh8 {[%clk 0:00:39]} 26. Nc3 {[%clk 0:01:33]}  Qc4 {[%clk 0:00:27]} 27. Rxc1 {[%clk 0:01:31]}  e5 {[%clk 0:00:27]} 28. dxe5 {[%clk 0:01:14]}  dxe5 {[%clk 0:00:28]} 29. Qh6 {[%clk 0:01:13]}  Rg8 {[%clk 0:00:25]} 30. Kh2 {[%clk 0:01:12]}  Qe6 {[%clk 0:00:25]} 31. Bg4 {[%clk 0:01:09]}  Qxf6 {[%clk 0:00:24]} 32. Bxc8 {[%clk 0:01:05]}  Rxc8 {[%clk 0:00:25]} 33. Nd5 {[%clk 0:01:02]}  Qe6 {[%clk 0:00:24]} 34. Rxc8+ {[%clk 0:00:56]}  Qxc8 {[%clk 0:00:05]} 35. Nf6 {[%clk 0:00:56]} 1-0


[Site "https://www.chess.com"]